Workbook

Sheet PF Adjustment
A1: WA Gas PF Revenue Normalization Adjustment--12-months Ended December 31, 2018
G3: Total | H3: Revenue
A4: Rates Effective May 1st, 2018 | D4: CB Restated | F4: Pro-Forma | G4: Adjust | H4: Norm. Adj.
B5: Revenue | C5: WP Source | E5: WP Source
B6: Base Revenue | C6: G-PREV-2 | D6: ='Reconcile ROO to CB'!J6 -> 86517 | E6: G-PREV-5 | F6: =91154-F12 -> 86199 | G6: =F6-D6 -> -318 | H6: =G6 -> -318
B7: Gas Cost Revenue | C7: G-PREV-2 | D7: ='Reconcile ROO to CB'!J7 -> 58765.46222 | G7: -58765.46222 | H7: =G7 -> -58765.46222
B8: Weather Normalization | C8: G-PREV-2 | D8: ='Reconcile ROO to CB'!J8 -> 3485.537775 | E8: G-PREV-5 | F8: 3469 | G8: -16.53777548 | H8: =G8 -> -16.53777548
B9: Unbilled Revenue | C9: G-PREV-2 | D9: ='Reconcile ROO to CB'!J14 -> -1898 | E9: G-PREV-5 | F9: -916 | G9: 982 | H9: =G9 -> 982
B10: Sales to Ultimate Consumers / Genl Bus. Rev | D10: =SUM(D6:D9) -> 146870 | F10: =SUM(F6:F9) -> 88752 | G10: -58118 | H10: =SUM(H6:H9) -> -58118
B12: Base Revenue, Transportation | C12: G-PREV-2 | D12: ='Reconcile ROO to CB'!J17 -> 4960 | E12: G-PREV-5 | F12: =3235+1298+422 -> 4955 | G12: =F12-D12 -> -5 | H12: =G12 -> -5
B14: Unbilled Revenue Transportation * | D14: ='Reconcile ROO to CB'!J19 -> 0 | F14: 0 | G14: =F14-D14 -> 0 | H14: =G14 -> 0
B15: Transportation For Others** | D15: =SUM(D12:D14) -> 4960 | F15: =SUM(F12:F14) -> 4955 | G15: =F15-D15 -> -5 | H15: =SUM(H12:H14) -> -5
B17: Tariffed Sales | C17: Calc | D17: ='Reconcile ROO to CB'!J22 -> 151830 | F17: =F10+F15 -> 93707 | G17: =G10+G15 -> -58123 | H17: =H10+H15 -> -58123
B18: Provision For Rate Refund - Decoupling | C18: G-PREV-2 | D18: ='Reconcile ROO to CB'!J25 -> -693 | F18: 0 | G18: =F18-D18 -> 693 | H18: =G18 -> 693 | I18: Elim Decoupling Earnings Sharing in Test Period
B19: Provision For Rate Refund - Tax Reform | C19: G-PREV-2 | D19: ='Reconcile ROO to CB'!J26 -> -2181 | F19: 0 | G19: =F19-D19 -> 2181 | H19: =G19 -> 2181 | I19: Elim Tax Reform Deferral (Jan - April)
B20: Decoupling Deferred Revenue | C20: G-PREV-2 | D20: ='Reconcile ROO to CB'!J28 -> -1675 | F20: 0 | G20: =F20-D20 -> 1675 | H20: =G20 -> 1675 | I20: Elim 2018 Decoupling deferrals - GRC resets Base
B21: Total Revenue Adjustment | D21: =SUM(D17:D20) -> 147281 | F21: =+SUM(F17:F20) -> 93707 | G21: =SUM(G17:G20) -> -53574 | H21: =SUM(H17:H20) -> -53574
B23: Expense
B24: Gas Purchases | C24: G-PREV-2 | D24: ='Reconcile ROO to CB'!J35 -> 51519 | F24: 0 | G24: =F24-D24 -> -51519 | H24: =G24 -> -51519
B25: GTI Funding 813 | C25: G-PREV-2 | D25: ='Reconcile ROO to CB'!J37 -> 83 | F25: =D25 -> 83 | G25: =F25-D25 -> 0 | H25: 0
B26: State Excise Tax | H26: =ROUND(H$17*$I26,0) -> -2230 | I26: ='Reconcile ROO to CB'!K43 -> 0.038374 | J26: Effective Rate
B27: Uncollectibles | H27: =ROUND(H$17*$I27,0) -> -220 | I27: ='Reconcile ROO to CB'!K44 -> 0.003781 | J27: Effective Rate
B28: Commission Fees | H28: =ROUND(H$17*$I28,0) -> -116 | I28: ='Reconcile ROO to CB'!K45 -> 0.002 | J28: Nominal Rate
H29: =SUM(H24:H28) -> -54085 | I29: =SUM(I26:I28) -> 0.044155 | J29: Conver. Factor b4 FIT
B31: Operating Income before FIT | H31: =H21-H29 -> 511
B32: FIT Expense | H32: =ROUND(H31*$I32,0) -> 107 | I32: 0.21
B33: Net Operating Income | H33: =H31-H32 -> 404
B35: * zero in Pro-forma revenues | I35: =H17 -> -58123 | J35: Revenue
B36: ** includes Special Contract revenue (Sch 148); moved to "Other Revenue" in Cost of Service | F36: =1298+422 -> 1720 | I36: =I29 -> 0.044155 | J36: Conver. Factor b4 FIT
F37: =F15-F36 -> 3235 | G37: "Total Transp Rev" for COS | I37: =ROUND(I35*I36,0) -> -2566 | J37: Rev related exp.
I38: =SUM(H26:H28) -> -2566 | J38: check
I39: =I37-I38 -> 0

Sheet Reconcile ROO to CB
A1: WA Gas Normalized Revenue --12 months ended December 31, 2018
B2: $000's | E2: Eliminate | F2: Weather | G2: Eliminate | H2: Misc | I2: Total | J2: Normalized CB
D3: Actuals | E3: B&O Taxes | F3: Normalization | G3: Adder Sched | H3: Restating | I3: Adjust | J3: Base Revenue
D4: 1 | E4: 2.01 | F4: 2.1 | G4: 2.11 | H4: 2.12 | J4: and Gas Cost
B5: Revenue | C5: WP Source
B6: Base Rate Revenue | C6: Calc | D6: =D15-SUM(D7:D14) -> 86517 | I6: =SUM(E6:H6) -> 0 | J6: =D6+I6 -> 86517
B7: Gas Cost Revenue - Sch 150 | C7: EAS | D7: 55992 | F7: =F35*K47 -> 2773.462225 | I7: 2773.462225 | J7: =D7+I7 -> 58765.46222
B8: Weather Normalization | C8: WN | F8: =6259-F7 -> 3485.537775 | I8: 3485.537775 | J8: =D8+I8 -> 3485.537775 | K8: Weather Normalization adjustment excluded base rate revenue captured in the Decoupling deferred revenue (mechanism began January 2015)
B9: Gas Rate Adjustment - Sch 155 | C9: Calc | D9: =-I9 -> -16179 | G9: =ROUND(G36*$K$47,0) -> 16179 | I9: 16179 | J9: 0
B10: B&O Tax - Sch 158 | C10: B&O | D10: =-I10 -> 5070 | E10: -5070 | I10: -5070 | J10: 0
B11: Tax Reform Refund - Sch 174 | C11: Calc | D11: =-I11 -> -1582 | G11: =ROUND((G42+G49/0.79)*$K$47,0) -> 1582 | I11: 1582 | J11: =D11+I11 -> 0
B12: Decoupling Amortization - Sch 175 | C12: EAS | D12: =-I12 -> 5528 | G12: =ROUND(-G27*$K$47,0) -> -5528 | I12: -5528 | J12: =D12+I12 -> 0
B13: Public Purpose Rider - Sch 189/191/192 | C13: Calc | D13: =-I13 -> 7155 | G13: =ROUND(G40*$K$47,0) -> -7155 | I13: =SUM(E13:H13) -> -7155 | J13: =D13+I13 -> 0
B14: Unbilled Revenue | C14: ROO / Calc | D14: -1876 | G14: =ROUND(G41*$K$47,0)+0 -> -22 | I14: =SUM(E14:H14) -> -22 | J14: =D14+I14 -> -1898
B15: Sales to Ultimate Consumers / Genl Bus. Rev | C15: ROO | D15: 140625 | E15: =SUM(E6:E14) -> -5070 | F15: 6259 | G15: 5056 | H15: 0 | I15: 6245 | J15: 146870
B17: Base Revenue, Transportation | C17: Calc | D17: =D20-D18-D19 -> 4960 | I17: =SUM(E17:H17) -> 0 | J17: =D17+I17 -> 4960
B18: B&O Tax, Transportation | C18: B&O | D18: =-E18 -> 128 | E18: -128 | I18: -128 | J18: 0
B19: Unbilled Revenue Transportation * | D19: 0 | I19: 0 | J19: 0
B20: Transportation For Others | D20: 5088 | E20: =SUM(E17:E19) -> -128 | F20: =SUM(F17:F19) -> 0 | G20: 0 | I20: -128 | J20: =SUM(J17:J19) -> 4960
B22: Tariffed Sales | C22: Calc | D22: =D15+D20 -> 145713 | E22: =E15+E20 -> -5198 | F22: 6259 | G22: 5056 | I22: =SUM(E22:H22) -> 6117 | J22: =J15+J20 -> 151830
B23: Sales for Resale | C23: EAS | D23: =-I23 -> 53967 | G23: =-56974-G24 -> -53967 | I23: -53967 | J23: =D23+I23 -> 0
B24: Deferred Exchange | C24: EAS | D24: =-I24 -> 3007 | G24: -3007 | I24: -3007 | J24: 0
B25: Provision for Rate Refund - Decoupling | C25: ROO | D25: -807 | H25: 114 | I25: 114 | J25: =D25+I25 -> -693
B26: Provision for Rate Refund - Tax Reform | C26: ROO | D26: -2181 | I26: 0 | J26: =D26+I26 -> -2181
B27: Other Revenue - Decoupling Amortization | C27: WN/EAS | D27: =-I27 -> -5284 | G27: =3715+1569 -> 5284 | I27: 5284 | J27: =D27+I27 -> 0
B28: Other Revenue - Decoupling Deferred Revenue | C28: ROO | D28: =697+949 -> 1646 | F28: -3321 | G28: 0 | I28: -3321 | J28: =D28+I28 -> -1675 | K28: Decoupling Deferred Revenue is net of revenue related expenses that will be incurred upon amortization
B29: Other Revenue - Miscellaneous | C29: Calc | D29: =D30-SUM(D23:D28) -> 333 | I29: 0 | J29: =D29+I29 -> 333
B30: Total Other Revenue | C30: ROO | D30: 50681 | E30: =SUM(E23:E29) -> 0 | F30: =SUM(F23:F29) -> -3321 | G30: -51690 | H30: 114 | I30: -54897 | J30: -4216
B31: Total Gas Revenue | C31: Calc | D31: =D22+D30 -> 196394 | E31: =E22+E30 -> -5198 | F31: =F22+F30 -> 2938 | G31: =G22+G30 -> -46634 | H31: 114 | I31: -48780 | J31: 147614
B33: Expense
B34: B&O Tax | C34: B&O | D34: 5184 | E34: =-D34 -> -5184 | I34: =SUM(E34:G34) -> -5184 | J34: =D34+I34 -> 0
B35: Gas Purchases | C35: EAS | D35: =90669-D36 -> 106134 | F35: 2651 | G35: =-41801-G36 -> -57266 | I35: -54615 | J35: =D35+I35 -> 51519
B36: Prior Period Gas Cost Amortization | C36: EAS | D36: -15465 | G36: =-D36 -> 15465 | I36: 15465 | J36: 0
B37: GTI Funding 813010 | C37: ROO | D37: 79 | F37: 4 | I37: 4 | J37: 83
B38: Net Natural Gas Storage Transactions | C38: EAS | D38: 376 | G38: =-D38 -> -376 | I38: -376 | J38: 0
B39: Product Extraction sales in PGA | C39: EAS | D39: -668 | G39: =-D39 -> 668 | I39: 668 | J39: 0
B40: Public Purpose Rider | C40: EAS | D40: 6839 | G40: -6839 | I40: -6839 | J40: 0
B41: Public Purpose Rider Unbilled | C41: EAS | D41: 21 | G41: -21 | I41: -21 | J41: 0
B42: Tax Reform Amortization | C42: EAS | D42: -1083 | G42: 1083 | I42: =SUM(E42:G42) -> 1083 | J42: =D42+I42 -> 0
B43: State Excise Tax | C43: CF | D43: =ROUND(D$22*$K43,0) -> 5592 | F43: =ROUND(F$22*$K43,0) -> 240 | G43: 194 | H43: 0 | I43: 434 | J43: =D43+I43 -> 6026 | K43: =[1]CF!$E$19 -> 0.038374 | L43: Nominal Rate
B44: Uncollectibles | C44: CF | D44: =ROUND(D$22*$K44,0) -> 551 | F44: 24 | G44: 19 | H44: 0 | I44: 43 | J44: 594 | K44: =[1]CF!$E$15 -> 0.003781 | L44: Effective Rate
B45: Commission Fees | C45: CF | D45: =ROUND(D$22*$K45,0) -> 291 | F45: 13 | G45: 10 | H45: 0 | I45: 23 | J45: 314 | K45: =[1]CF!$E$17 -> 0.002 | L45: Nominal Rate
B46: Total Expenses | D46: =SUM(D34:D45) -> 107851 | E46: =SUM(E34:E45) -> -5184 | F46: 2932 | G46: -47063 | H46: =SUM(H34:H45) -> 0 | I46: =SUM(I34:I45) -> -49315 | J46: =SUM(J35:J45) -> 58536 | K46: =SUM(K43:K45) -> 0.044155 | L46: Conver. Factor b4 FIT
K47: =1/(1-K46) -> 1.046194728 | L47: Expense Gross Up Factor
B48: Net Revenue Less Gas Costs | D48: =D31-D46 -> 88543 | E48: =E31-E46 -> -14 | F48: =F31-F46 -> 6 | G48: =G31-G46 -> 429 | H48: =H31-H46 -> 114 | I48: =SUM(E48:H48) -> 535 | J48: =J31-J46 -> 89078
B49: DFIT Flow Through Tax Reform Amortization | D49: -339 | G49: =-D49 -> 339
B51: * Transportation Unbilled Revenue is included in Sales to Ultimate Consumers per Results of Operations
F52: WASH
B54: Total Gas Revenues, WA (Direct + Allocated) | F54: 261694309
B55: less:
B56: Unbilled Revenue | F56: 88066
B57: Misc Service Revenues | F57: 7633
B58: Rent from Gas Property | F58: 2428
B59: Sales for Resale Revenue | F59: 96364261
B60: Other Gas Revenues | F60: 8713935
B61: General Business Revenue | F61: =F54-SUM(F56:F60) -> 156517986
B63: Revenue Run Total Washington | F63: =156212088 -> 156212088
B64: less: Misc Service Revenues | F64: =F57 -> 7633 | G64: =3518+152+3963 -> 7633
B65: plus: Revenue Recorded by Journal (WSU capital pmts) | F65: =26132*12 -> 313584
B66: General Business Revenue | F66: =F63-F64+F65 -> 156518039
F67: =F66-F61 -> 53
B69: Exclude Sch 158 B&O Taxes | F69: =-(3207892-8371+2426338) -> -5625859
B70: addback Comm/Ind refund (net of tax) | F70: =-(-79734+3133) -> 76601
B71: Rate Revenue | F71: =SUM(F66:F70) -> 150968834
B73: Includes Adjustment Schedules 150, 155, and 191
B74: Schedule 101 | F74: =59964740.48+48000501.79 -> 107965242.3
B75: Schedule 111 | F75: =20135647.48+14450863.77 -> 34586511.25
B76: Schedule 112 | F76: 0
B77: Schedule 121 | F77: =2156259.82+1280529.46 -> 3436789.28
B78: Schedule 122 | F78: =249328.84+125566.33 -> 374895.17
B79: Schedule 131 | F79: 0
B80: Schedule 132 | F80: =392692.4+204339.49 -> 597031.89
B81: Schedule 146 | F81: =1589710.31+831802.98 -> 2421513.29
B82: Schedule 147 | F82: =40151.06+8529.32 -> 48680.38
B83: Schedule 148 | F83: =795013.28+429526.89 -> 1224540.17
B84: WSU capital payments charge | F84: 313584
B85: Rate Revenue | F85: =SUM(F74:F84) -> 150968787.7
F86: =F85-F71 -> -46.30000007
